bitfinex-derivatives/quotes_ETHF0:USTF0_20250505
["timestamp","ask_amount","ask_price","bid_price","bid_amount"]
[1746420657290,2.429,1803.9,1803.8,1.10867]
[1746420658189,3.53765,1803.9,1803.8,1.10867]
[1746420658489,3.53767,1803.9,1803.7,4.63573]
[1746420658689,2.544,1803.8,1803.7,4.63573]
[1746420659188,3.65271,1803.8,1803.7,4.63573]
[1746420659390,2.544,1803.8,1803.7,4.63573]
[1746420660288,3.65271,1803.8,1803.7,4.63573]
[1746420660589,2.544,1803.8,1803.7,4.63573]
[1746420660790,1.7399,1803.8,1803.7,7.84353]
[1746420660986,0.8294,1803.9,1803.8,1.10871]
[1746420661187,6.94378881,1804.0,1803.9,1.10865]
[1746420661387,8.51418881,1804.0,1803.9,1.10865]
[1746420663295,3.79877881,1804.0,1803.9,1.10865]
[1746420663488,1.10865,1803.9,1803.8,1.10866]
[1746420663696,1.6459,1803.9,1803.8,1.10866]
[1746420663993,2.75455,1803.9,1803.8,1.10866]
[1746420664295,1.6459,1803.9,1803.8,1.10866]
[1746420665296,2.75455,1803.9,1803.8,1.10866]
[1746420666195,2.75455,1803.9,1803.8,1.10871]
[1746420666392,2.75455,1803.9,1803.7,4.63571]
[1746420666589,3.3707,1803.8,1803.7,4.63571]
[1746420679116,3.47948881,1804.0,1803.7,3.527]
[1746420679313,0.27168881,1804.0,1803.9,1.10865]
[1746420679520,0.27168881,1804.0,1803.9,4.31645]
[1746420679723,0.27168881,1804.0,1803.9,6.01075]
[1746420689026,8.81e-06,1804.0,1803.9,6.01075]
[1746420689228,1.6678,1804.4,1804.0,2.77142]
[1746420689425,1.6678,1804.4,1804.3,1.1084]
[1746420690126,1.6678,1804.4,1804.3,2.7939]
[1746420690429,3.2078,1804.6,1804.5,1.10828]
[1746420691227,1.6606,1804.7,1804.6,1.10822]
[1746420692426,3.2321,1804.7,1804.6,1.10822]
[1746420698234,4.34026,1804.7,1804.4,5.1595]
[1746420698436,1.6972,1804.6,1804.5,1.10828]
[1746420702135,1.10836,1804.4,1804.2,1.10844]
[1746420702335,1.10832,1804.5,1804.3,4.6334]
[1746420702537,0.7856,1804.4,1804.3,4.6334]
[1746420702835,1.5983,1804.4,1804.3,4.6334]
[1746420704442,2.70664,1804.4,1804.3,3.525]
[1746420704737,1.5983,1804.4,1804.3,4.6334]
[1746420704930,2.70664,1804.4,1804.3,3.525]
[1746420707141,2.70664,1804.4,1804.3,4.6334]
[1746420709046,2.70664,1804.4,1804.3,3.525]
[1746420712248,2.70664,1804.4,1804.3,4.6334]
[1746420713040,2.70664,1804.4,1804.3,3.525]
[1746420713245,5.91444,1804.4,1804.3,3.525]
[1746420715147,1.10846,1804.2,1804.1,1.10851]
[1746420715446,1.10844,1804.3,1804.2,1.10846]
[1746420715639,1.10844,1804.3,1804.1,1.10848]
[1746420715841,1.10846,1804.2,1804.1,1.10848]
[1746420716454,4.8061,1804.4,1804.0,3.525]
[1746420716649,5.9145,1804.4,1804.3,1.1084]
[1746420717043,5.9145,1804.4,1804.2,1.10842]
[1746420718046,1.1084,1804.3,1804.2,1.10842]
[1746420718248,2.7934,1804.3,1804.2,1.10842]
[1746420718741,1.685,1804.3,1804.2,1.10842]
[1746420719446,5.91449,1804.4,1804.1,1.674]
[1746420719649,7.59949,1804.4,1804.1,1.674]
[1746420719947,1.685,1804.3,1804.2,1.10846]
[1746420720944,5.824,1804.5,1804.2,3.2078]
[1746420721141,3.2078,1804.9,1804.4,3.2078]
[1746420721449,2.5422,1805.0,1804.9,1.10803]
[1746420721642,2.5422,1805.0,1804.9,4.63303]
[1746420722946,1.7366,1805.0,1804.9,4.63303]
[1746420723149,1.7366,1805.0,1804.9,6.33913]
[1746420723342,3.9999,1805.1,1805.0,1.10797]
[1746420723542,5.7365,1805.1,1805.0,1.10797]
[1746420728046,6.84441,1805.1,1804.9,6.3391]
[1746420728253,1.5796,1805.0,1804.9,6.3391]
[1746420728453,2.4157,1805.0,1804.9,6.3391]
[1746420731153,3.52367,1805.0,1804.9,3.525]
[1746420733457,10.18569,1805.0,1804.6,3.524]
[1746420733762,1.1082,1804.7,1804.6,3.524]
[1746420734962,6.6333,1804.7,1804.3,7.84015]
[1746420735162,1.10834,1804.4,1804.3,3.524]
[1746420735361,1.10832,1804.5,1804.3,4.6324]
[1746420735659,1.6037,1804.4,1804.3,4.6324]
[1746420735848,2.4618,1804.4,1804.3,4.6324]
[1746420738365,3.57014,1804.4,1804.3,4.6324]
[1746420739062,2.4618,1804.4,1804.3,4.6324]
[1746420739560,3.57014,1804.4,1804.3,4.6324]
[1746420740462,2.4618,1804.4,1804.3,4.6324]
[1746420740962,3.57014,1804.4,1804.3,4.6324]
[1746420741164,2.4618,1804.4,1804.3,4.6324]
[1746420742169,3.57014,1804.4,1804.3,4.6324]
[1746420743173,2.4618,1804.4,1804.3,4.6324]
[1746420743364,3.57014,1804.4,1804.3,4.6324]
[1746420744872,2.4618,1804.4,1804.3,4.6324]
[1746420747871,3.57014,1804.4,1804.3,3.524]
[1746420748065,3.57014,1804.4,1804.3,4.6324]
[1746420748871,2.4618,1804.4,1804.3,4.6324]
[1746420750063,4.37964,1804.4,1804.3,4.6324]
[1746420750675,3.2713,1804.4,1804.3,4.6324]
[1746420752376,1.6037,1804.4,1804.3,4.6324]
[1746420753377,9.0318,1804.6,1804.5,1.10828]
[1746420754674,10.7114,1804.6,1804.5,1.10828]
[1746420757077,4.8874,1804.6,1804.5,1.10828]
[1746420758877,1.6796,1804.6,1804.5,1.10828]
[1746420763473,2.76995,1805.0,1804.5,1.10828]
[1746420763474,1.5924,1805.5,1804.8,2.77025]
[1746420763674,2.4129,1805.5,1805.2,1.10785]
[1746420763873,2.4129,1805.5,1805.2,4.63385]
[1746420764174,1.6701,1805.4,1805.2,3.526]
[1746420764378,1.6701,1805.4,1805.2,4.63385]
[1746420764679,2.77784,1805.4,1805.2,4.63385]
[1746420765177,14.25123043,1805.6,1805.2,4.63385]
[1746420765376,11.04343043,1805.6,1805.2,4.63385]
[1746420765580,1.6701,1805.5,1805.2,6.20755]
[1746420765780,1.6701,1805.5,1805.2,6.91256524]
[1746420766284,1.6701,1805.5,1805.4,1.10773]
[1746420766484,2.4653,1805.5,1805.3,1.10775]
[1746420766780,2.4653,1805.5,1805.4,0.70514625]
[1746420766976,0.7952,1805.5,1805.2,5.0997]
[1746420767177,0.7952,1805.5,1805.4,1.10773]
[1746420768087,0.7952,1805.5,1805.2,5.0997]
[1746420768088,1.90289,1805.5,1805.3,1.10779]
[1746420768286,0.7952,1805.5,1805.4,1.10773]
[1746420769591,0.7952,1805.5,1805.2,3.526]
[1746420769793,0.7952,1805.5,1805.4,1.10773]
[1746420770086,1.90287,1805.5,1805.4,1.10773]
[1746420770391,0.7952,1805.5,1805.4,1.10773]
[1746420771295,1.90287,1805.5,1805.3,1.10776]
[1746420771490,0.7952,1805.5,1805.0,3.525]
[1746420771694,1.10778,1805.4,1805.2,1.10783]
[1746420772193,0.8238,1805.3,1805.2,1.10783]
[1746420772495,1.93159,1805.3,1805.2,1.10783]
[1746420772696,0.8238,1805.3,1805.2,1.10785]
[1746420773094,1.93159,1805.3,1805.2,1.10785]
[1746420773295,0.8238,1805.3,1805.2,1.10785]
[1746420773692,1.93159,1805.3,1805.2,0.72413313]
[1746420774091,1.93159,1805.3,1805.1,1.1079]
[1746420774598,1.10785,1805.2,1805.1,1.1079]
[1746420774798,1.10785,1805.2,1805.1,1.83200024]
[1746420774998,1.10785,1805.2,1805.1,0.72410024]
[1746420775189,1.10791,1805.1,1805.0,4.63297]
[1746420775498,0.8135,1805.1,1805.0,5.35708381]
[1746420777192,0.8135,1805.1,1805.0,8.56488381]
[1746420780200,1.6311,1805.2,1805.1,1.10791]
[1746420780603,1.6311,1805.2,1805.1,3.50662381]
[1746420781102,1.6311,1805.2,1805.1,2.78251]
[1746420781399,1.6311,1805.2,1805.1,3.50669471]
[1746420781599,1.6311,1805.2,1805.1,3.50670163]
[1746420781799,2.73895,1805.2,1805.1,0.72419163]
[1746420782000,2.73895,1805.2,1805.1,1.83216056]
[1746420783804,2.73895,1805.2,1805.1,1.83239628]
[1746420784604,2.73895,1805.2,1805.1,1.832397]
[1746420785206,2.73895,1805.2,1805.1,1.83239745]
[1746420785398,2.73895,1805.2,1805.1,0.72448745]
[1746420785594,2.73895,1805.2,1805.1,1.83239733]
[1746420786802,2.73895,1805.2,1805.1,1.83262224]
[1746420787207,2.73895,1805.2,1805.1,1.83307702]
[1746420788007,2.73895,1805.2,1805.1,1.83308698]
[1746420788197,2.73895,1805.2,1805.1,1.83369998]
[1746420788502,2.73895,1805.2,1805.1,0.72578998]
[1746420788707,1.10791,1805.1,1805.0,7.84075]
[1746420789003,1.7042,1805.1,1805.0,8.56659151]
[1746420789303,1.7042,1805.1,1805.0,8.56656626]
[1746420789703,1.7042,1805.1,1805.0,8.56656668]
[1746420789897,1.7042,1805.1,1805.0,8.56814977]
[1746420790098,1.7042,1805.1,1805.0,7.84075]
[1746420791008,2.81211,1805.1,1805.0,7.84075]
[1746420792006,2.81211,1805.1,1805.0,3.525]
[1746420792509,1.10803,1804.9,1804.8,4.31588]
[1746420792707,1.646,1805.0,1804.9,1.10803]
[1746420792913,9.0318,1805.2,1805.1,1.10791]
[1746420792914,11.01046,1805.2,1805.1,1.10791]
[1746420793211,12.65646,1805.2,1805.1,1.10791]
[1746420793508,12.65645,1805.2,1805.1,1.10791]
[1746420794509,9.44865,1805.2,1805.1,1.10791]
[1746420794808,9.4487,1805.2,1805.0,2.80513]
[1746420795010,1.6562,1805.1,1804.8,3.2078]
[1746420795212,2.76415,1805.1,1805.0,1.10797]
[1746420798010,2.76415,1805.1,1804.9,2.70989]
[1746420798011,1.10797,1805.0,1804.9,2.70989]
[1746420798213,2.70387,1805.0,1804.9,2.70989]
[1746420798910,1.5959,1805.0,1804.9,2.70989]
[1746420799106,1.5959,1805.0,1804.7,3.572]
[1746420799313,2.76589,1804.9,1804.7,4.68012]
[1746420799510,1.5959,1804.8,1804.7,4.68012]
[1746420800613,1.5959,1804.8,1804.7,6.39762]
[1746420801313,1.5959,1804.8,1804.7,4.68012]
[1746420803008,1.5959,1804.8,1804.7,6.39762]
[1746420803312,1.5959,1804.8,1804.7,4.68012]
[1746420803709,2.704,1804.8,1804.7,3.572]
[1746420804108,1.10816,1804.7,1804.5,1.10824]
[1746420804409,0.797,1804.6,1804.5,1.10824]
[1746420804606,2.75032,1804.6,1804.5,1.10824]
[1746420804807,3.2349,1804.6,1804.5,1.10824]
[1746420806710,1.1082,1804.7,1804.5,1.10824]
[1746420806918,3.2078,1805.2,1805.0,1.10793]
[1746420807118,6.4818,1805.2,1805.0,1.10793]
[1746420807413,1.6379,1805.1,1805.0,1.10793]
[1746420807814,1.6379,1805.1,1804.9,4.68099]
[1746420808018,2.74581,1805.1,1804.9,4.68099]
[1746420808223,1.6379,1805.1,1805.0,1.10797]
[1746420808513,5.95178,1805.2,1805.0,1.10797]
[1746420813513,1.10797,1805.0,1804.9,3.573]
[1746420813719,1.10811,1804.8,1804.6,6.7778]
[1746420814019,1.5843,1804.7,1804.6,7.88602]
[1746420817122,1.6643,1804.9,1804.8,1.10806]
[1746420817821,2.77233,1804.9,1804.8,1.10806]
[1746420818023,2.77233,1804.9,1804.7,1.10812]
[1746420818822,2.77233,1804.9,1804.8,1.1081]
[1746420819319,1.1081,1804.8,1804.7,1.10812]
[1746420819521,2.77238,1804.9,1804.7,1.10812]
[1746420819717,1.1081,1804.8,1804.7,1.10812]
[1746420821827,2.77238,1804.9,1804.7,1.10812]
[1746420822727,2.77238,1804.9,1804.8,1.1081]
[1746420825635,1.10811,1804.8,1804.7,1.10813]
[1746420828131,1.6643,1804.9,1804.6,4.67819]
[1746420828432,1.6561,1804.7,1804.6,4.67819]
[1746420828931,2.76426,1804.7,1804.6,3.57]
[1746420830128,1.10828,1804.5,1804.4,1.10829]
[1746420830427,4.38707,1804.6,1804.5,1.10828]
[1746420830629,2.73097,1804.6,1804.5,1.10828]
[1746420831534,2.73092,1804.6,1804.5,1.10828]
[1746420831835,1.6227,1804.6,1804.5,1.10828]
[1746420832033,2.73092,1804.6,1804.5,1.10828]
[1746420836137,1.10829,1804.5,1804.4,1.1083]
[1746420841446,1.6227,1804.6,1804.3,5.2055]
[1746420841753,1.10834,1804.4,1804.3,6.31386]
[1746420842050,1.10833,1804.5,1804.4,1.10834]
[1746420842351,1.6227,1804.6,1804.3,5.2055]
[1746420842842,1.10834,1804.5,1804.4,1.10834]
[1746420844151,1.10834,1804.4,1804.3,6.31386]
[1746420844851,1.10846,1804.2,1804.1,0.843]
[1746420845053,1.6227,1804.6,1804.0,3.55]
[1746420845054,1.10853,1804.1,1804.0,3.55]
[1746420845255,1.93193,1804.1,1804.0,3.55]
[1746420846251,1.10865,1803.9,1803.8,14.18639198]
[1746420846561,1.10865,1803.9,1803.8,10.55480198]
[1746420847353,1.10865,1803.9,1803.8,3.2078]
[1746420847744,1.10871,1803.8,1803.7,3.55]
[1746420847945,1.10871,1803.8,1803.7,4.65877]
[1746420848555,2.81489,1803.9,1803.7,4.65877]
[1746420849053,1.6111,1803.8,1803.7,4.65877]
[1746420850653,0.02363161,2476.3,1803.7,13.4203]
[1746420850654,3.2078,1804.4,1803.7,13.4203]
[1746420850956,1.6111,1804.2,1804.1,1.1085]
[1746420851961,2.71957,1804.2,1804.1,1.1085]
[1746420853457,1.6111,1804.2,1804.1,1.1085]
[1746420855964,2.71958,1804.2,1804.0,1.6625]
[1746420856156,2.71958,1804.2,1804.0,1.10856]
[1746420856351,1.7381,1804.1,1804.0,1.10856]
[1746420860459,2.71764,1804.3,1803.9,4.66542]
[1746420860661,1.7197,1804.2,1804.0,4.3753]
[1746420860860,1.7197,1804.2,1804.0,5.9804]
[1746420861261,1.7197,1804.2,1804.1,1.10853]
[1746420868177,2.82816,1804.2,1804.1,1.10853]
[1746420868671,1.7197,1804.2,1804.1,1.10853]
[1746420871270,1.7197,1804.2,1804.1,2.68753]
[1746420878380,1.7197,1804.2,1804.1,3.41209963]
[1746420879375,1.7197,1804.2,1804.1,2.68753]
[1746420879580,1.7197,1804.2,1804.1,3.41208933]
[1746420880081,1.7197,1804.2,1804.1,3.41209242]
[1746420880383,1.7197,1804.2,1804.1,3.41208675]
[1746420880880,1.7197,1804.2,1804.1,3.41208655]
[1746420881182,1.7197,1804.2,1804.1,3.4120862]
[1746420881383,1.7197,1804.2,1804.1,1.8330862]
[1746420881684,1.7197,1804.2,1804.1,1.8331149]
[1746420881886,1.7197,1804.2,1804.1,1.83311819]
[1746420882384,1.7197,1804.2,1804.1,1.83305418]
[1746420882683,1.7197,1804.2,1804.1,1.83305395]
[1746420883179,1.7197,1804.2,1804.1,1.10853]
[1746420883383,1.7197,1804.2,1804.1,1.83305471]
[1746420883581,1.7197,1804.2,1804.1,1.10853]
[1746420883881,1.7197,1804.2,1804.1,1.83305506]
[1746420884186,1.7197,1804.2,1804.1,1.83306544]
[1746420885384,1.7197,1804.2,1804.1,1.83306462]
[1746420885582,1.7197,1804.2,1804.1,1.83329114]
[1746420885887,1.7197,1804.2,1804.1,1.83329111]
[1746420886086,1.7197,1804.2,1804.1,1.83329076]
[1746420886286,1.7197,1804.2,1804.1,1.83328785]
[1746420886485,1.7197,1804.2,1804.1,1.83328758]
[1746420886987,1.7197,1804.2,1804.1,1.83328415]
[1746420888287,1.7197,1804.2,1804.1,1.10853]
[1746420888490,1.7197,1804.2,1804.1,1.83341318]
[1746420889090,1.7197,1804.2,1804.1,1.83341752]
[1746420889989,1.7197,1804.2,1804.1,1.10853]
[1746420890184,1.7197,1804.2,1804.1,1.83340917]
[1746420890893,1.7197,1804.2,1804.1,1.83341028]
[1746420891191,1.7197,1804.2,1804.1,1.83356066]
[1746420891396,1.7197,1804.2,1804.1,1.10853]
[1746420891693,1.7197,1804.2,1804.1,1.83357085]
[1746420892194,1.7197,1804.2,1804.1,1.83359623]
[1746420895088,1.7197,1804.2,1804.1,1.10853]
[1746420895283,1.7197,1804.2,1804.1,1.83349717]
[1746420895996,2.82816,1804.2,1804.1,1.83349717]
[1746420896991,2.82816,1804.2,1804.1,1.83276251]
[1746420897294,2.82816,1804.2,1804.1,1.10853]
[1746420897491,2.82816,1804.2,1804.1,1.83276222]
[1746420897689,2.82816,1804.2,1804.1,1.83276757]
[1746420898294,2.82816,1804.2,1804.1,1.83275606]
[1746420898996,2.82816,1804.2,1804.1,1.83275589]
[1746420899394,2.82816,1804.2,1804.1,1.832755]
[1746420899595,2.82816,1804.2,1804.1,1.10853]
[1746420899894,2.82816,1804.2,1804.1,1.83275534]
[1746420900196,2.82816,1804.2,1804.1,1.83275613]
[1746420900494,2.82816,1804.2,1804.1,1.83275598]
[1746420900695,1.10853,1804.1,1804.0,3.551]
[1746420900902,2.82373,1804.1,1804.0,4.27530796]
[1746420901093,2.82373,1804.1,1804.0,0.72430796]
[1746420901296,1.10865,1803.9,1803.8,3.2078]
[1746420901598,1.10865,1803.9,1803.8,4.31651]
[1746420902098,1.10865,1803.9,1803.8,5.04113257]
[1746420902301,2.82385,1803.9,1803.8,5.0411338]
[1746420902600,2.82385,1803.9,1803.8,4.31651]
[1746420902801,2.82385,1803.9,1803.8,5.04114056]
[1746420903401,2.82385,1803.9,1803.8,4.31651]
[1746420903807,2.82385,1803.9,1803.8,5.04036675]
[1746420904008,2.82385,1803.9,1803.8,1.83256675]
[1746420904203,2.82385,1803.9,1803.8,1.83254745]
[1746420904401,2.82385,1803.9,1803.8,1.83255022]
[1746420904602,2.82385,1803.9,1803.8,1.83254486]
[1746420904804,2.82385,1803.9,1803.8,1.83254206]
[1746420905103,2.82385,1803.9,1803.8,1.83254477]
[1746420905404,2.82385,1803.9,1803.8,1.83246187]
[1746420905606,2.82385,1803.9,1803.8,0.72375187]
[1746420905804,2.82385,1803.9,1803.8,1.83246187]
[1746420906005,2.82385,1803.9,1803.8,0.72375187]
[1746420906306,2.82385,1803.9,1803.8,1.83246187]
[1746420906510,2.82385,1803.9,1803.8,1.10871]
[1746420907303,1.10871,1803.8,1803.7,4.31653]
[1746420907604,2.80821,1803.8,1803.7,4.31653]
[1746420910508,2.80821,1803.8,1803.7,1.10873]
[1746420913006,2.80825,1803.8,1803.6,3.532]
[1746420913210,1.10875,1803.8,1803.7,1.10877]
[1746420916106,1.1087,1803.9,1803.8,1.10871]
[1746420916314,1.10871,1803.8,1803.6,3.532]
[1746420916612,1.1087,1803.9,1803.6,3.532]
[1746420916812,1.1087,1803.9,1803.8,1.10871]
[1746420921708,4.31643,1804.0,1803.7,2.5746]
[1746420922012,4.31643,1804.0,1803.8,1.10865]
[1746420922213,4.31643,1804.0,1803.8,2.73145]
[1746420923118,1.10865,1803.9,1803.8,2.73145]
[1746420923615,1.10865,1803.9,1803.8,1.10865]
[1746420924217,4.31643,1804.0,1803.8,1.10865]
[1746420925117,3.2078,1804.0,1803.8,1.10865]
[1746420925318,1.93825,1803.9,1803.8,1.10865]
[1746420925818,2.75215,1803.9,1803.8,1.10865]
[1746420927820,1.6435,1803.9,1803.8,1.10865]
[1746420928720,3.2328,1803.9,1803.8,1.10865]
[1746420929820,4.34145,1803.9,1803.8,1.10865]
[1746420931325,4.34145,1803.9,1803.7,1.10873]
[1746420931527,1.726,1803.8,1803.7,1.10873]
[1746420936130,1.10889,1803.5,1803.3,0.8683]
[1746420936330,1.10889,1803.5,1803.4,1.10896]
[1746420936529,4.31667,1803.6,1803.5,1.10889]
[1746420937126,1.10892,1803.5,1803.3,6.019]
[1746420937331,1.96645,1803.5,1803.3,4.64097]
[1746420937530,1.10896,1803.4,1803.3,4.64097]
[1746420938331,1.96644,1803.5,1803.3,4.64097]
[1746420938529,0.8575,1803.5,1803.3,4.64097]
[1746420938731,1.96645,1803.5,1803.3,4.64097]
[1746420939030,1.10896,1803.4,1803.3,4.64097]
[1746420940431,1.10902,1803.3,1803.1,1.10911]
[1746420940626,3.2078,1803.4,1803.0,20.83209566]
[1746420940930,1.10912,1803.2,1803.0,19.57867566]
[1746420941430,1.10914,1803.1,1803.0,19.57867566]
[1746420941628,1.10913,1803.2,1803.0,19.57867566]
[1746420941828,1.10913,1803.2,1803.0,7.84898]
[1746420942734,4.31693,1803.2,1803.0,4.64118]
[1746420943132,1.10914,1803.1,1803.0,4.64118]
[1746420943732,1.10914,1803.1,1803.0,3.532]
[1746420945128,1.10914,1803.1,1803.0,4.6412]
[1746420945336,1.10914,1803.1,1803.0,3.532]
[1746420945933,1.10914,1803.1,1803.0,4.6412]
[1746420946134,1.10914,1803.1,1803.0,3.532]
[1746420947536,1.10926,1802.9,1802.8,4.3171]
[1746420947729,1.10924,1803.0,1802.8,4.3171]
[1746420948331,1.598,1802.9,1802.8,4.3171]
[1746420949335,6.93317,1803.1,1803.0,1.1092]
[1746420949528,8.67497,1803.1,1803.0,1.1092]
[1746420949729,8.67497,1803.1,1802.9,2.78492]
[1746420949931,1.7418,1803.0,1802.9,2.78492]
[1746420950241,5.824,1803.1,1803.0,1.1092]
[1746420950540,7.5658,1803.1,1803.0,1.1092]
[1746420950738,8.67494,1803.1,1803.0,1.1092]
[1746420951936,8.67494,1803.1,1802.9,3.64001]
[1746420952243,1.7418,1803.0,1802.9,2.78491]
[1746420952439,1.7418,1803.0,1802.9,1.10921]
[1746420952840,5.824,1803.2,1803.1,1.10914]
[1746420953044,8.57478,1803.2,1803.0,1.10915]
[1746420953242,1.6417,1803.1,1803.0,1.10915]
[1746420954138,1.6417,1803.1,1803.0,1.96485]
[1746420954539,5.824,1803.2,1803.1,1.10914]
[1746420955041,7.4657,1803.2,1803.1,1.10914]
[1746420955854,7.46080052,1803.2,1803.1,1.10914]
[1746420956147,8.30730052,1803.2,1803.1,1.10914]
[1746420956545,2.4882,1803.2,1803.1,1.10914]
[1746420959642,3.59728,1803.2,1803.1,1.10914]
[1746420960750,2.4882,1803.2,1803.1,1.10914]
[1746420962747,1.6417,1803.2,1803.1,1.10914]
[1746420962946,1.6417,1803.2,1803.1,2.83514]
[1746420964158,3.2078,1803.3,1803.2,1.10908]
[1746420964458,4.8964,1803.3,1803.2,2.83508]
[1746420964654,9.02690052,1803.7,1803.2,4.9338]
[1746420964860,2.84852,1803.5,1803.3,2.80257]
[1746420965058,1.7396,1803.4,1803.3,2.80257]
[1746420965358,2.84856,1803.4,1803.3,2.80257]
[1746420965653,1.7396,1803.4,1803.3,2.80257]
[1746420965859,1.7396,1803.4,1803.3,3.65797]
[1746420969362,3.2078,1803.7,1803.6,1.10883]
[1746420969561,4.9128,1803.7,1803.6,1.10883]
[1746420969762,5.7696,1803.7,1803.6,1.10883]
[1746420970063,6.87837,1803.7,1803.5,2.83056]
[1746420970262,1.705,1803.6,1803.5,2.83056]
[1746420983970,1.705,1803.6,1803.5,1.10886]
[1746420992969,1.705,1803.6,1803.5,2.83496]
[1746420998982,1.705,1803.6,1803.5,1.10886]
[1746421002275,2.81383,1803.6,1803.5,1.10886]
[1746421002477,1.705,1803.6,1803.5,1.10886]
[1746421004676,1.705,1803.6,1803.5,2.83626]
[1746421007879,0.8703,1803.8,1803.7,1.10877]
[1746421008086,1.7095,1803.9,1803.8,1.10871]
[1746421008386,1.6676,1804.0,1803.9,1.10865]
[1746421008780,1.6676,1804.0,1803.9,2.70925]
[1746421010989,1.6676,1804.0,1803.9,3.18468941]
[1746421014076,1.6676,1804.0,1803.9,2.70925]
[1746421014688,1.6676,1804.0,1803.9,3.19546051]
[1746421016083,1.6676,1804.0,1803.9,2.70925]
[1746421016289,1.6676,1804.0,1803.9,1.10865]
[1746421018897,1.7095,1804.1,1804.0,1.10859]
[1746421019084,1.7095,1804.1,1804.0,7.84639]
[1746421021993,1.7095,1804.1,1804.0,9.47559]
[1746421022288,0.7975,1804.5,1804.4,1.10834]
[1746421024189,2.454,1804.5,1804.4,1.10834]
[1746421029095,3.56228,1804.5,1804.4,1.10834]
[1746421029395,3.56228,1804.5,1804.3,3.529]
[1746421029597,1.6552,1804.4,1804.3,4.6374]
[1746421031601,0.7975,1804.5,1804.4,1.10834]
[1746421031891,1.10802,1805.0,1804.9,1.10803]
[1746421032096,1.96542,1805.0,1804.9,1.10803]
[1746421033097,4.46552,1805.0,1804.6,6.29854]
[1746421033395,1.6365,1804.9,1804.8,1.1081]
[1746421036302,1.1081,1804.8,1804.7,1.10812]
[1746421036504,1.10816,1804.7,1804.6,3.528]
[1746421036698,3.48456,1804.7,1804.6,3.528]
[1746421036897,3.48456,1804.7,1804.6,4.63622]
[1746421037596,3.48456,1804.7,1804.6,3.528]
[1746421039108,1.10822,1804.6,1804.5,1.10824]
[1746421039401,2.565,1804.6,1804.5,1.10824]
[1746421044005,2.565,1804.6,1804.5,2.78804]
[1746421044612,1.7005,1804.6,1804.5,2.78804]
[1746421046606,1.7005,1804.6,1804.5,3.51283725]
[1746421047008,0.8065,1804.7,1804.6,1.10822]
[1746421047205,2.4878,1804.8,1804.7,1.10816]
[1746421047401,3.3219,1804.8,1804.7,1.83295725]
[1746421048309,3.3219,1804.8,1804.7,1.10816]
[1746421048610,1.6842,1804.8,1804.7,1.83257723]
[1746421048800,1.6842,1804.8,1804.7,3.51178537]
[1746421049000,1.6842,1804.8,1804.7,3.5117764]
[1746421049403,1.6842,1804.8,1804.7,3.51180399]
[1746421049913,1.6842,1804.8,1804.7,4.30964045]
[1746421050106,1.6463,1805.0,1804.9,1.10803]
[1746421050312,3.2309,1805.0,1804.9,1.10803]
[1746421050517,3.2309,1805.0,1804.9,1.83231045]
[1746421050720,3.2309,1805.0,1804.9,1.83224213]
[1746421050922,3.2309,1805.0,1804.9,1.83224551]
[1746421052823,3.2309,1805.0,1804.9,5.36024551]
[1746421053023,3.2309,1805.0,1804.9,7.09734551]
[1746421053224,3.2309,1805.0,1804.9,7.09704694]
[1746421053429,3.2309,1805.0,1804.9,7.09703591]
[1746421054019,3.2309,1805.0,1804.9,7.09702939]
[1746421054627,3.2309,1805.0,1804.9,7.09702641]
[1746421055125,3.2309,1805.0,1804.9,7.09701676]
[1746421055329,3.2309,1805.0,1804.9,7.09701466]
[1746421056622,3.2309,1805.0,1804.9,7.09669739]
[1746421056926,1.5846,1805.0,1804.9,7.09669739]
[1746421058527,1.5846,1805.0,1804.9,7.09628066]
[1746421058928,1.5846,1805.0,1804.9,5.35918066]
[1746421060331,1.5846,1805.0,1804.9,5.35926929]
[1746421060527,1.5846,1805.0,1804.9,5.35926964]
[1746421061026,1.5846,1805.0,1804.9,4.25123964]
[1746421061233,2.69257,1805.0,1804.9,4.25123964]
[1746421061530,2.69257,1805.0,1804.9,4.63603]
[1746421062427,1.5846,1805.0,1804.9,4.63603]
[1746421063827,1.5846,1805.0,1804.9,6.25933]
[1746421064134,1.675,1805.2,1805.1,1.10791]
[1746421064332,3.3515,1805.2,1805.1,1.10791]
[1746421065033,4.45935,1805.2,1804.9,3.528]
[1746421065234,1.6765,1805.1,1805.0,1.10797]
[1746421070940,2.78441,1805.1,1804.9,4.63599]
[1746421071129,2.78441,1805.1,1805.0,1.10797]
[1746421071641,1.10797,1805.0,1804.9,4.63599]
[1746421071842,2.74817,1805.0,1804.9,3.528]
[1746421073036,2.74817,1805.0,1804.8,4.31588]
[1746421073236,3.2562,1804.9,1804.8,4.31588]
[1746421075843,3.2562,1804.9,1804.8,5.03994945]
[1746421080351,3.2562,1804.9,1804.8,5.04058271]
[1746421081053,3.2562,1804.9,1804.8,5.04059082]
[1746421081752,3.2562,1804.9,1804.8,1.83279082]
[1746421084554,3.2562,1804.9,1804.8,1.83323498]
[1746421085247,3.2562,1804.9,1804.8,1.83338767]
[1746421085446,3.2562,1804.9,1804.8,1.8333874]
[1746421085756,3.2562,1804.9,1804.8,1.83340201]
[1746421086151,3.2562,1804.9,1804.8,1.10808]
[1746421086452,3.2562,1804.9,1804.8,1.83346741]
[1746421086754,3.2562,1804.9,1804.8,1.10808]
[1746421086952,3.2562,1804.9,1804.8,1.83348486]